bitfinex/quotes_BTCUSD_20250123
["timestamp","ask_amount","ask_price","bid_price","bid_amount"]
[1737617529532,0.42841704,102230.0,102220.0,0.0979704]
[1737617529673,0.47780878,102230.0,102220.0,0.0979704]
[1737617529882,0.58802845,102230.0,102220.0,0.0001424]
[1737617530103,0.58802845,102230.0,102220.0,0.0979704]
[1737617531791,0.55014861,102230.0,102220.0,0.0979704]
[1737617532501,0.64580416,102230.0,102220.0,0.0001424]
[1737617532700,0.74114399,102230.0,102220.0,0.0001424]
[1737617533355,0.66880416,102230.0,102220.0,0.0001424]
[1737617533762,0.74114399,102230.0,102220.0,0.0001424]
[1737617534412,0.66753483,102230.0,102220.0,0.0001424]
[1737617534832,0.73987466,102230.0,102220.0,0.0001424]
[1737617535046,1.28491449,102230.0,102220.0,0.0001424]
[1737617535260,1.33491449,102230.0,102220.0,0.0001424]
[1737617535475,0.96221449,102230.0,102220.0,4e-07]
[1737617535694,0.398837,102210.0,102200.0,4.89595633]
[1737617535902,0.49618429,102210.0,102200.0,4.89595633]
[1737617536114,0.56618429,102210.0,102200.0,4.89595633]
[1737617536309,0.78320378,102210.0,102200.0,4.89595633]
[1737617537349,0.71086395,102210.0,102200.0,4.89595633]
[1737617537904,1.03684511,102210.0,102200.0,4.89595633]
[1737617540437,1.05613273,102210.0,102200.0,4.89595633]
[1737617541068,1.06605956,102210.0,102200.0,4.89595633]
[1737617542543,1.04605956,102210.0,102200.0,4.89595633]
[1737617542760,1.1330187,102210.0,102200.0,4.89595633]
[1737617545932,1.86435956,102210.0,102200.0,4.79811133]
[1737617546137,1.89929856,102210.0,102200.0,4.70026633]
[1737617547122,1.89929856,102210.0,102200.0,4.60108972]
[1737617547123,1.93414888,102210.0,102200.0,4.60108972]
[1737617547321,1.06584888,102210.0,102200.0,4.30429238]
[1737617547520,0.9429444,102210.0,102200.0,4.14909238]
[1737617547730,1.04029169,102210.0,102200.0,4.14909238]
[1737617547930,1.09898169,102210.0,102200.0,4.0710783]
[1737617548178,1.09898169,102210.0,102200.0,3.95128003]
[1737617548379,1.20188169,102210.0,102200.0,3.93171103]
[1737617548528,1.09898169,102210.0,102200.0,3.93171103]
[1737617548739,1.09898169,102210.0,102200.0,3.92069263]
[1737617549149,1.09898169,102210.0,102200.0,3.86198563]
[1737617549372,1.09898169,102210.0,102200.0,3.82284763]
[1737617549843,1.18594083,102210.0,102200.0,3.82284763]
[1737617550026,1.18594083,102210.0,102200.0,3.80327863]
[1737617550238,1.18594083,102210.0,102200.0,3.72500263]
[1737617550653,1.18594083,102210.0,102200.0,3.67135263]
[1737617551065,1.18594083,102210.0,102200.0,3.65178363]
[1737617551270,1.18594083,102210.0,102200.0,3.61264563]
[1737617551477,1.08859354,102210.0,102200.0,3.57350763]
[1737617551686,1.08859354,102210.0,102200.0,3.53590763]
[1737617552145,1.09699354,102210.0,102200.0,3.47720063]
[1737617552349,1.09699354,102210.0,102200.0,3.41673108]
[1737617552563,1.09699354,102210.0,102200.0,3.35704032]
[1737617552743,1.19434083,102210.0,102200.0,3.35704032]
[1737617552984,1.19434083,102210.0,102200.0,3.30344032]
[1737617553217,1.19434083,102210.0,102200.0,2.33620259]
[1737617553434,1.31961733,102210.0,102200.0,2.24162522]
[1737617553649,1.31961733,102210.0,102200.0,1.91118888]
[1737617553858,1.31961733,102210.0,102200.0,1.80148281]
[1737617554069,1.31961733,102210.0,102200.0,1.52996681]
[1737617554274,1.31961733,102210.0,102200.0,1.51039781]
[1737617554482,1.23265819,102210.0,102200.0,1.51039781]
[1737617555109,1.12975819,102210.0,102200.0,1.41255281]
[1737617555319,1.07106819,102210.0,102200.0,1.39071281]
[1737617555733,1.07106819,102210.0,102200.0,1.35897781]
[1737617555934,1.07106819,102210.0,102200.0,1.34797781]
[1737617556146,1.07106819,102210.0,102200.0,1.30883981]
[1737617556362,1.07106819,102210.0,102200.0,1.22761734]
[1737617556979,1.03621787,102210.0,102200.0,1.22761734]
[1737617557191,1.03621787,102210.0,102200.0,1.17874847]
[1737617557511,1.03621787,102210.0,102200.0,1.15917947]
[1737617557736,1.03621787,102210.0,102200.0,1.09895147]
[1737617558173,1.03621787,102210.0,102200.0,1.07938247]
[1737617558312,1.03621787,102210.0,102200.0,1.02067547]
[1737617558521,1.03621787,102210.0,102200.0,1.00110647]
[1737617559228,1.03721787,102210.0,102200.0,0.94239947]
[1737617559444,1.07206819,102210.0,102200.0,0.88894147]
[1737617559925,1.07206819,102210.0,102200.0,0.88170147]
[1737617560229,1.07206819,102210.0,102200.0,0.80171447]
[1737617560433,1.07606819,102210.0,102200.0,0.75342033]
[1737617560882,1.07606819,102210.0,102200.0,0.73979033]
[1737617561091,1.07606819,102210.0,102200.0,0.2693967]
[1737617561320,1.07606819,102210.0,102200.0,0.05096172]
[1737617561591,1.07606819,102210.0,102200.0,0.01944137]
[1737617561795,0.473,102200.0,102190.0,0.00029904]
[1737617562121,0.473,102200.0,102160.0,0.07689904]
[1737617562122,0.547876,102170.0,102160.0,0.07689904]
[1737617562331,0.7785537,102170.0,102160.0,0.07689904]
[1737617563159,0.7785537,102170.0,102160.0,0.07740046]
[1737617564257,0.7785537,102170.0,102160.0,0.00080046]
[1737617564892,0.83888411,102170.0,102160.0,0.00080046]
[1737617565096,0.91664762,102170.0,102160.0,0.00080046]
[1737617565740,0.92560762,102170.0,102160.0,0.00080046]
[1737617566524,0.91664762,102170.0,102160.0,0.00080046]
[1737617566706,0.92560762,102170.0,102160.0,0.00080046]
[1737617567127,0.92560762,102170.0,102160.0,4.6e-07]
[1737617568205,0.093,102130.0,102120.0,0.1235426]
[1737617568451,0.66322211,102130.0,102120.0,0.12369337]
[1737617568654,0.66322211,102130.0,102120.0,0.12797294]
[1737617569181,0.94322211,102130.0,102120.0,0.12797294]
[1737617569612,0.94322211,102130.0,102120.0,0.08117294]
[1737617569814,1.22537297,102130.0,102120.0,0.00457294]
[1737617570261,1.0828917,102130.0,102120.0,0.00457294]
[1737617571008,1.19322211,102130.0,102120.0,0.00457294]
[1737617572750,0.89322211,102130.0,102120.0,0.00457294]
[1737617572956,0.89322211,102130.0,102120.0,0.00029337]
[1737617572957,0.92537951,102130.0,102120.0,0.00029337]
[1737617573586,0.89322211,102130.0,102120.0,0.00029337]
[1737617573980,0.89322211,102130.0,102120.0,0.00458886]
[1737617574193,0.89322211,102130.0,102120.0,0.00029337]
[1737617574810,0.89322211,102130.0,102120.0,0.00465235]
[1737617575397,0.98018125,102130.0,102120.0,0.00465235]
[1737617575612,0.98018125,102130.0,102120.0,0.00029337]
[1737617576090,0.82495084,102130.0,102120.0,0.00029337]
[1737617576300,1.23528125,102130.0,102120.0,0.07689337]
[1737617576625,1.22588125,102130.0,102120.0,0.07689337]
[1737617576796,1.23528125,102130.0,102120.0,0.08125235]
[1737617577366,1.22588125,102130.0,102120.0,0.08125235]
[1737617577565,1.33262854,102130.0,102120.0,0.08125235]
[1737617578596,1.23528125,102130.0,102120.0,0.08125235]
[1737617579024,1.12495084,102130.0,102120.0,0.08125235]
[1737617579228,1.23528125,102130.0,102120.0,0.08125235]
[1737617579673,1.23528125,102130.0,102120.0,0.12805235]
[1737617579877,1.24499682,102130.0,102120.0,0.12805235]
[1737617580105,1.13466641,102130.0,102120.0,0.12805235]
[1737617580451,0.83466641,102130.0,102120.0,0.12805235]
[1737617580603,0.75466641,102130.0,102120.0,0.12805235]
[1737617581026,0.90466641,102130.0,102120.0,0.12805235]
[1737617581748,0.85466641,102130.0,102120.0,0.12805235]
[1737617581962,0.75830727,102130.0,102120.0,0.12805235]
[1737617582944,0.73830727,102130.0,102120.0,0.12805235]
[1737617583997,0.73824727,102130.0,102120.0,0.12805235]
[1737617586497,0.62791686,102130.0,102120.0,0.12805235]
[1737617586865,0.60497686,102130.0,102120.0,0.12805235]
[1737617587087,0.59526129,102130.0,102120.0,0.12805235]
[1737617587461,0.61826129,102130.0,102120.0,0.12805235]
[1737617589469,0.52034729,102130.0,102120.0,0.22597635]
[1737617589844,0.25,102130.0,102120.0,0.22597635]
[1737617592981,0.0868724,102140.0,102120.0,0.23838276]
[1737617593188,0.0868724,102140.0,102130.0,0.225014]
[1737617593398,0.00029946,102140.0,102130.0,0.225014]
[1737617593613,0.00029946,102140.0,102130.0,0.2295111]
[1737617595923,0.25029946,102140.0,102130.0,0.2295111]
[1737617597324,0.25029946,102140.0,102130.0,0.33984151]
[1737617599827,0.25029946,102140.0,102130.0,0.2295111]
[1737617601252,0.2996912,102140.0,102130.0,0.2295111]
[1737617607517,0.25029946,102140.0,102130.0,0.33984151]
[1737617608526,0.25029946,102140.0,102130.0,0.33998411]
[1737617608992,0.00029946,102140.0,102130.0,0.33998411]
[1737617609455,0.00029946,102140.0,102130.0,0.48998411]
[1737617609671,0.00029946,102140.0,102130.0,0.607331]
[1737617609881,4.6e-07,102140.0,102130.0,0.60793926]
[1737617610092,0.5727,102160.0,102150.0,0.225095]
[1737617610339,0.25,102160.0,102150.0,0.33542541]
[1737617610547,0.25,102160.0,102150.0,0.3397732]
[1737617610751,0.247,102160.0,102150.0,0.3397732]
[1737617610968,0.25029946,102170.0,102160.0,0.225085]
[1737617611172,0.25029946,102170.0,102160.0,0.33541541]
[1737617611377,0.25029946,102170.0,102160.0,0.45710389]
[1737617612012,0.00029946,102170.0,102160.0,0.60771215]
[1737617612223,0.00029946,102170.0,102160.0,0.60786292]
[1737617612644,4.6e-07,102170.0,102160.0,0.60996772]
[1737617612847,4.6e-07,102170.0,102160.0,0.58996812]
[1737617613032,4.6e-07,102170.0,102160.0,0.60996772]
[1737617614016,0.33657294,102190.0,102170.0,0.02060786]
[1737617614324,0.33657294,102190.0,102180.0,0.33539641]
[1737617614526,0.33657294,102190.0,102180.0,0.45215013]
[1737617614766,0.33657294,102190.0,102180.0,0.34181972]
[1737617614927,0.08657294,102190.0,102180.0,0.60275839]
[1737617615838,0.25,102200.0,102190.0,0.223856]
[1737617616012,0.25029925,102210.0,102200.0,0.174347]
[1737617616176,0.25029925,102210.0,102200.0,0.33417741]
[1737617616973,0.00029925,102210.0,102200.0,0.33417741]
[1737617617171,0.00080157,102210.0,102200.0,0.33417741]
[1737617617797,0.25080157,102210.0,102200.0,0.33417741]
[1737617617982,0.25080157,102210.0,102200.0,0.223847]
[1737617618764,0.30019331,102210.0,102200.0,0.223847]
[1737617620188,0.25080157,102210.0,102200.0,0.223847]
[1737617620425,0.30019331,102210.0,102200.0,0.223847]
[1737617621030,0.3975406,102210.0,102200.0,0.0765]
[1737617621248,0.30019331,102210.0,102200.0,0.223847]
[1737617621459,0.4205406,102210.0,102200.0,0.0765]
[1737617621669,0.4205406,102210.0,102200.0,0.174347]
[1737617621874,0.4205406,102210.0,102200.0,0.0765]
[1737617622101,0.4205406,102210.0,102200.0,0.174347]
[1737617622651,0.5183776,102210.0,102200.0,0.174347]
[1737617623500,0.097856,102190.0,102180.0,0.147361]
[1737617623659,0.097856,102190.0,102180.0,0.0495]
[1737617623858,0.53814703,102200.0,102180.0,0.147366]
[1737617624062,0.14724774,102190.0,102180.0,0.343098]
[1737617624279,0.04939174,102190.0,102180.0,0.343098]
[1737617624680,0.04939174,102190.0,102180.0,0.147366]
[1737617624954,0.39724774,102190.0,102180.0,0.147366]
[1737617625468,0.29939174,102190.0,102180.0,0.147366]
[1737617628177,0.25,102190.0,102180.0,0.147366]
[1737617628379,0.25,102190.0,102180.0,0.33419641]
[1737617629072,0.25,102190.0,102180.0,0.4515433]
[1737617629237,0.25,102190.0,102180.0,0.71248197]
[1737617629747,0.152145,102190.0,102180.0,0.71248197]
[1737617630003,0.32350157,102210.0,102200.0,0.223847]
[1737617630245,0.00080157,102210.0,102200.0,0.4515243]
[1737617630719,0.00080157,102210.0,102200.0,0.6015243]
[1737617630949,0.00080157,102210.0,102200.0,0.60213256]
[1737617632133,5.7e-07,102210.0,102200.0,0.71246297]
[1737617632339,5.7e-07,102210.0,102200.0,0.73399359]
[1737617632787,5.7e-07,102210.0,102200.0,0.7565551]
[1737617633810,8.2e-07,102220.0,102210.0,0.64286719]
[1737617634008,8.2e-07,102220.0,102210.0,0.74036525]
[1737617634230,8.2e-07,102220.0,102210.0,0.76189587]
[1737617634643,7e-08,102230.0,102220.0,0.39963586]
[1737617634780,7e-08,102230.0,102220.0,0.62884418]
[1737617634981,7e-08,102230.0,102220.0,0.60731356]
[1737617635416,7e-08,102230.0,102220.0,0.65140569]
[1737617636386,7e-08,102230.0,102220.0,0.7617361]
[1737617636660,7e-08,102230.0,102220.0,0.65140569]
[1737617636840,7e-08,102230.0,102220.0,0.73917459]
[1737617637101,7e-08,102230.0,102220.0,0.60731356]
[1737617638040,7e-08,102230.0,102220.0,0.6067053]
[1737617638709,7e-08,102230.0,102220.0,0.5867057]
[1737617638874,7e-08,102230.0,102220.0,0.58731396]
[1737617639124,7e-08,102230.0,102220.0,0.60731356]
[1737617639675,7e-08,102230.0,102220.0,0.6067053]
[1737617639874,7e-08,102230.0,102220.0,0.58731396]
[1737617640077,7e-08,102230.0,102220.0,0.60731356]
[1737617640278,7e-08,102230.0,102220.0,0.5867057]
[1737617640685,7e-08,102230.0,102220.0,0.59628686]
[1737617640882,7e-08,102230.0,102220.0,0.61628646]
[1737617641084,7e-08,102230.0,102220.0,0.61689472]
[1737617641283,0.24897743,102240.0,102230.0,0.097818]
[1737617641491,0.24897743,102240.0,102230.0,0.20814841]
[1737617643438,0.24897743,102240.0,102230.0,0.097818]
[1737617644161,0.24897743,102240.0,102230.0,0.20814841]
[1737617645036,0.25029946,102250.0,102240.0,0.097809]
[1737617645239,0.25029946,102250.0,102240.0,0.20911745]
[1737617645420,0.25029946,102250.0,102240.0,0.20813941]
[1737617645867,0.25029946,102250.0,102240.0,0.097809]
[1737617651799,0.25029946,102250.0,102240.0,0.180509]
[1737617654177,0.25029946,102250.0,102240.0,0.38916473]
[1737617654383,0.25029946,102250.0,102240.0,0.3881867]
[1737617654781,0.25029946,102250.0,102240.0,0.4357867]
[1737617655140,0.00029946,102250.0,102240.0,0.4357867]
[1737617656526,0.00029946,102250.0,102240.0,0.4454024]
[1737617656941,0.00029946,102250.0,102240.0,0.5954024]
[1737617659811,0.00029946,102250.0,102240.0,0.74873241]
[1737617661189,0.00029946,102250.0,102240.0,0.638402]
[1737617662764,0.00029946,102250.0,102240.0,0.74873241]
[1737617663200,0.00029946,102250.0,102240.0,0.74934067]
[1737617663876,4.6e-07,102250.0,102240.0,0.74934067]
[1737617664434,4.6e-07,102250.0,102240.0,0.7797865]
[1737617667598,4.6e-07,102250.0,102240.0,0.7799289]
[1737617672307,9.2e-07,102260.0,102250.0,1.10442268]
[1737617672493,9.2e-07,102260.0,102250.0,0.6151608]
[1737617672825,9.2e-07,102260.0,102250.0,0.6246008]
[1737617673249,3.8e-07,102270.0,102260.0,0.29139686]
[1737617673487,3.8e-07,102270.0,102260.0,0.68740497]
[1737617673820,3.8e-07,102270.0,102260.0,0.76512794]
[1737617674025,3.8e-07,102270.0,102260.0,0.73470497]
[1737617674252,6.3e-07,102280.0,102270.0,0.62443286]
[1737617674440,3.3e-07,102280.0,102270.0,0.61511859]
[1737617678187,3.3e-07,102280.0,102270.0,0.62502212]
[1737617678424,3.3e-07,102280.0,102270.0,0.5945995]
[1737617678808,3.3e-07,102280.0,102270.0,0.61393127]
[1737617679766,3.7e-07,102280.0,102270.0,0.61393127]
[1737617681871,3.7e-07,102280.0,102270.0,0.76393127]
[1737617690579,3.7e-07,102280.0,102270.0,0.79426854]
[1737617691180,3.7e-07,102280.0,102270.0,0.76393127]
[1737617691380,3.7e-07,102280.0,102270.0,0.82753127]
[1737617691604,3.7e-07,102280.0,102270.0,0.85787393]
[1737617691804,3.7e-07,102280.0,102270.0,0.85801633]
[1737617695762,0.00029925,102300.0,102290.0,0.47999927]
[1737617695899,0.00029925,102300.0,102290.0,0.57734656]
[1737617696569,0.00029925,102300.0,102290.0,0.73507697]
[1737617698841,0.11714243,102320.0,102300.0,0.02060786]
[1737617699192,0.00050223,102320.0,102310.0,0.4554197]
[1737617699937,0.00050223,102320.0,102310.0,0.4984193]
[1737617700137,0.00050223,102320.0,102310.0,0.49902756]
[1737617703081,0.00064463,102320.0,102310.0,0.49902756]
[1737617703649,0.07628713,102330.0,102320.0,0.20806241]
[1737617703850,0.07643774,102330.0,102320.0,0.30699514]
[1737617704047,0.07643774,102330.0,102320.0,0.30601796]
[1737617706379,0.00015061,102330.0,102320.0,0.30601796]
[1737617706785,0.00015061,102330.0,102320.0,0.32901796]
[1737617708870,0.07525061,102330.0,102320.0,0.30601796]
[1737617710499,0.07525061,102330.0,102320.0,0.3054097]
[1737617710989,0.07525061,102330.0,102320.0,0.097732]
[1737617711197,0.07525061,102330.0,102310.0,0.61626392]
[1737617711198,0.0751,102320.0,102310.0,0.32305792]
[1737617711328,0.0751,102310.0,102300.0,0.293234]
[1737617712416,0.221242,102310.0,102300.0,0.293234]
[1737617712620,0.172851,102300.0,102290.0,0.18710174]
[1737617713020,0.12449174,102300.0,102290.0,0.18710174]
[1737617713231,0.0751,102300.0,102290.0,0.18710174]
[1737617713406,0.0751,102300.0,102290.0,0.4484097]
[1737617713606,0.4462,102310.0,102300.0,0.097751]
[1737617713784,0.6478,102310.0,102300.0,0.4554287]
[1737617714429,0.5727,102310.0,102300.0,0.4554287]
[1737617715023,0.3227,102310.0,102300.0,0.4554287]
[1737617715223,0.3251,102320.0,102310.0,0.247742]
[1737617715422,0.25,102320.0,102310.0,0.4554197]
[1737617715914,0.73452355,102330.0,102320.0,0.097732]
[1737617718848,0.64795061,102330.0,102320.0,0.097732]
[1737617719042,0.64795061,102330.0,102320.0,0.3054097]
[1737617719164,0.25015061,102330.0,102320.0,0.4554097]
[1737617720841,0.00015061,102330.0,102320.0,0.4554097]
[1737617721250,0.00015061,102330.0,102320.0,0.45601796]
[1737617721709,0.00015061,102330.0,102320.0,0.4554097]
[1737617721909,0.25015061,102330.0,102320.0,0.45601796]
[1737617722156,0.25015061,102330.0,102320.0,0.47519895]
[1737617722881,0.00015061,102330.0,102320.0,0.47519895]
[1737617723986,0.25015061,102330.0,102320.0,0.36426028]
[1737617724237,0.25015061,102330.0,102320.0,0.35397717]
[1737617724761,0.25015061,102330.0,102320.0,0.35097877]
[1737617724982,0.25015061,102330.0,102320.0,0.46130918]
[1737617725962,0.00015061,102330.0,102320.0,0.46130918]
[1737617726970,0.25015061,102330.0,102320.0,0.46130918]
[1737617727302,0.25015061,102330.0,102320.0,0.46160801]
[1737617727658,0.25029291,102330.0,102320.0,0.46160801]
[1737617727861,0.00029291,102330.0,102320.0,0.46160801]
[1737617733857,0.25029291,102330.0,102320.0,0.46160801]
[1737617734193,0.25029291,102330.0,102320.0,0.25393031]
[1737617735101,0.25029291,102330.0,102320.0,0.36426072]
[1737617735915,0.00029291,102330.0,102320.0,0.36426072]
[1737617736990,0.25029291,102330.0,102320.0,0.36426072]
[1737617737187,0.25029291,102330.0,102320.0,0.25393031]
[1737617741621,0.25029291,102330.0,102320.0,0.36426072]
[1737617743911,0.00029291,102330.0,102320.0,0.25393031]
[1737617744933,0.00029291,102330.0,102320.0,0.36426072]
[1737617745953,0.25029291,102330.0,102320.0,0.36426072]
[1737617746178,0.25029291,102330.0,102320.0,0.25393031]
[1737617747957,0.00029291,102330.0,102320.0,0.25393031]
[1737617748156,0.00029291,102330.0,102320.0,0.46160801]
[1737617749325,0.0295776,102330.0,102320.0,0.46160801]
[1737617750946,0.21655335,102330.0,102320.0,0.46160801]
[1737617752114,0.0001424,102330.0,102320.0,0.67034752]
[1737617752812,0.2501424,102330.0,102320.0,0.67034752]
[1737617753006,0.2501424,102330.0,102320.0,0.56001711]
[1737617753207,0.2501424,102330.0,102320.0,0.46266982]
[1737617753986,0.2501424,102330.0,102320.0,0.31266982]
[1737617754222,0.3816424,102330.0,102320.0,0.29348883]
[1737617758539,0.3334424,102330.0,102320.0,0.29348883]
[1737617758866,0.2501424,102330.0,102320.0,0.29348883]
[1737617759023,0.2501424,102330.0,102320.0,0.40381924]
[1737617759403,0.2501424,102330.0,102320.0,0.78206653]
[1737617759799,0.0001424,102330.0,102320.0,0.78206653]
[1737617762416,0.02941152,102330.0,102320.0,0.78206653]
[1737617763849,0.0001424,102330.0,102320.0,0.78206653]
[1737617764432,0.0001424,102330.0,102320.0,0.67173612]
[1737617765077,0.0001424,102330.0,102320.0,0.44348883]
[1737617765290,0.0001424,102330.0,102320.0,0.29348883]
[1737617766822,0.2501424,102330.0,102320.0,0.29348883]
[1737617767637,0.2501424,102330.0,102320.0,0.195458]
[1737617767873,0.2501424,102330.0,102320.0,0.29319]
[1737617769955,0.2501424,102330.0,102320.0,0.40352041]
[1737617770616,0.2501424,102330.0,102320.0,0.5008677]
[1737617771974,0.2501424,102330.0,102320.0,0.49967628]
[1737617772759,0.27940242,102330.0,102320.0,0.49967628]
[1737617773185,0.27940242,102330.0,102320.0,0.54767628]
[1737617774006,0.02940242,102330.0,102320.0,0.54767628]
[1737617774538,0.02940242,102330.0,102320.0,0.54797511]
[1737617775398,0.02940242,102330.0,102320.0,0.69797511]
[1737617775598,0.02940242,102330.0,102320.0,0.77927511]
[1737617776234,0.0001424,102330.0,102320.0,0.77927511]
[1737617779450,0.02940242,102330.0,102320.0,0.77927511]
[1737617781076,0.0001424,102330.0,102320.0,0.77927511]
[1737617784986,0.02939439,102330.0,102320.0,0.77927511]
[1737617787209,0.0001424,102330.0,102320.0,0.77927511]
[1737617791165,0.02940313,102330.0,102320.0,0.77927511]
[1737617795695,0.0001424,102330.0,102320.0,0.77927511]
[1737617796211,1e-08,102330.0,102320.0,0.77927511]
[1737617798951,0.02925725,102330.0,102320.0,0.77927511]
[1737617799182,0.02921725,102330.0,102320.0,0.77927511]
[1737617799358,0.02921725,102330.0,102320.0,0.82973868]
[1737617799584,0.02921725,102330.0,102320.0,0.79927471]
[1737617799806,0.02921725,102330.0,102320.0,0.86370212]
[1737617799994,0.00029925,102340.0,102330.0,0.097723]
[1737617800125,0.00034942,102340.0,102330.0,0.26721676]
[1737617801956,0.00034942,102340.0,102330.0,0.41721676]
[1737617805077,0.00034942,102340.0,102330.0,0.49812502]
[1737617805265,0.00034942,102340.0,102330.0,0.49751676]
[1737617806048,0.00034942,102340.0,102330.0,0.51672349]
[1737617806249,0.00034942,102340.0,102330.0,0.52630299]
[1737617806448,0.00034942,102340.0,102330.0,0.59844946]
[1737617806671,0.00034942,102340.0,102330.0,0.61844906]
[1737617806872,0.00034942,102340.0,102330.0,0.6495094]
[1737617807077,0.00034942,102340.0,102330.0,0.6959094]
[1737617808196,0.00034942,102340.0,102330.0,1.7878214]
[1737617808736,0.00034942,102340.0,102330.0,1.6579774]
[1737617809181,0.00034942,102340.0,102330.0,1.65827623]
[1737617809377,0.00034942,102340.0,102330.0,1.14766023]
[1737617809579,0.00034942,102340.0,102330.0,1.12366023]
[1737617809719,0.02959268,102340.0,102330.0,1.12366023]
[1737617810560,0.02959268,102340.0,102330.0,1.14666023]
[1737617811281,0.0001425,102350.0,102340.0,0.0199996]
[1737617811452,0.32399925,102360.0,102350.0,0.15]
[1737617811668,0.32404942,102360.0,102350.0,0.41817361]
[1737617811814,0.32404942,102360.0,102350.0,0.41719676]
[1737617812010,0.32404942,102360.0,102350.0,0.48934323]
[1737617812413,0.32404942,102360.0,102350.0,0.56964323]
[1737617812617,0.00034942,102360.0,102350.0,0.56964323]
[1737617813238,0.00034942,102360.0,102350.0,0.57025149]
[1737617813439,0.00034942,102360.0,102350.0,0.59025109]
[1737617813639,4.2e-07,102360.0,102350.0,1.54778709]
[1737617813847,4.2e-07,102360.0,102350.0,0.7654224]
[1737617815485,4.2e-07,102360.0,102350.0,0.73504353]
[1737617815917,1e-08,102370.0,102360.0,0.177994]
[1737617816086,1e-08,102370.0,102360.0,0.38518398]
[1737617816287,1e-08,102370.0,102360.0,0.30488398]
[1737617816726,0.02916584,102370.0,102360.0,0.30488398]
[1737617817887,0.27916584,102370.0,102360.0,0.30488398]
[1737617818789,0.25000001,102370.0,102360.0,0.30488398]
[1737617818993,0.25000001,102370.0,102360.0,0.31457283]
[1737617820525,0.25000001,102370.0,102360.0,0.20473014]
[1737617820731,0.25000001,102370.0,102360.0,0.31457283]
[1737617820859,0.25000001,102370.0,102360.0,0.46457283]
[1737617823092,0.37330001,102370.0,102360.0,0.10738285]
[1737617823535,0.37330001,102370.0,102360.0,0.097694]
[1737617824101,0.42269175,102370.0,102360.0,0.097694]
[1737617825345,0.37330001,102370.0,102360.0,0.20753669]
[1737617825552,0.37330001,102370.0,102360.0,0.097694]
[1737617825904,0.37330001,102370.0,102360.0,0.19504129]
[1737617826103,0.25000001,102370.0,102360.0,0.30488398]
[1737617826510,0.25000001,102370.0,102360.0,0.45488398]
[1737617826975,1e-08,102370.0,102360.0,0.45488398]
[1737617827134,1e-08,102370.0,102360.0,0.53558398]
[1737617829083,1e-08,102370.0,102360.0,0.64542667]
[1737617829285,1e-08,102370.0,102360.0,0.53558398]
[1737617830301,1e-08,102370.0,102360.0,0.34504129]
[1737617830457,1e-08,102370.0,102360.0,0.45488398]
[1737617830896,0.25000001,102370.0,102360.0,0.45488398]
[1737617832085,0.25000001,102370.0,102360.0,0.45518281]
[1737617833934,0.25000001,102370.0,102360.0,0.53588281]
[1737617835140,1e-08,102370.0,102360.0,0.53588281]
[1737617836444,0.25,102380.0,102370.0,0.15]
[1737617836661,0.25,102380.0,102370.0,0.45585063]
[1737617836891,0.08079904,102390.0,102370.0,0.35718998]
[1737617837125,0.08079904,102390.0,102380.0,0.30486498]
[1737617837126,0.00029904,102390.0,102380.0,0.30486498]
[1737617837252,0.00029904,102390.0,102380.0,0.19502229]
[1737617838949,0.25029904,102390.0,102380.0,0.19502229]
[1737617840021,0.00029904,102390.0,102380.0,0.19502229]
[1737617841877,0.25029904,102390.0,102380.0,0.19502229]
[1737617842022,0.25029904,102390.0,102380.0,0.21464378]
[1737617842410,0.25029904,102390.0,102380.0,0.22452403]
[1737617849400,0.25029904,102390.0,102380.0,0.12717674]
[1737617849629,0.32809904,102390.0,102380.0,0.12717674]
[1737617850971,0.32809904,102390.0,102380.0,0.10331679]
[1737617853061,0.37749078,102390.0,102380.0,0.07381505]
[1737617863919,0.29969078,102390.0,102380.0,0.07381505]
[1737617865664,0.37789078,102390.0,102380.0,0.07381505]
[1737617866519,0.04939174,102380.0,102370.0,0.32238159]
[1737617866634,0.62150204,102390.0,102380.0,0.00029904]
[1737617867290,0.62150204,102390.0,102380.0,0.09797404]
[1737617867519,0.62150204,102390.0,102380.0,0.00029904]
[1737617867730,0.62150204,102390.0,102380.0,0.09797404]
[1737617867925,0.71884933,102390.0,102380.0,0.00029904]
[1737617868291,0.89859202,102390.0,102380.0,0.00029904]
[1737617870250,0.097675,102380.0,102370.0,0.29321385]
[1737617870452,0.175875,102380.0,102370.0,0.29321385]
[1737617870923,0.425875,102380.0,102370.0,0.29321385]
[1737617872136,0.47526674,102380.0,102370.0,0.29321385]
[1737617872347,0.425875,102380.0,102370.0,0.29321385]
[1737617873907,0.3282,102380.0,102370.0,0.29321385]
[1737617874317,0.29939174,102380.0,102370.0,0.29321385]
[1737617874516,0.25,102380.0,102370.0,0.29321385]
[1737617879671,0.26169289,102380.0,102370.0,0.29321385]
[1737617881976,0.25,102380.0,102370.0,0.29321385]
[1737617886989,0.243386,102380.0,102370.0,0.29321385]
[1737617887609,0.25507677,102380.0,102370.0,0.29321385]
[1737617889260,0.25512694,102380.0,102370.0,0.29321385]
[1737617890504,0.25526944,102380.0,102370.0,0.29321385]
[1737617893996,0.24357867,102380.0,102370.0,0.29321385]
[1737617894966,0.24357867,102380.0,102370.0,0.30312215]
[1737617895289,0.24357867,102380.0,102370.0,0.50264133]
[1737617895497,0.24357867,102380.0,102370.0,0.52564133]
[1737617895700,0.24357867,102380.0,102370.0,0.45352215]
[1737617895898,0.00019267,102380.0,102370.0,0.52564133]
[1737617896108,0.00019267,102380.0,102370.0,0.77298862]
[1737617897137,0.00019267,102380.0,102370.0,0.70086944]
[1737617897610,0.00019267,102380.0,102370.0,0.77298862]
[1737617897855,0.00019267,102380.0,102370.0,0.70086944]
[1737617899042,0.00019267,102380.0,102370.0,0.81073981]
[1737617900692,0.00019267,102380.0,102370.0,0.83047101]
[1737617900894,6.7e-07,102380.0,102370.0,0.83107927]
[1737617901095,6.7e-07,102380.0,102370.0,0.88149818]
[1737617901317,0.00025971,102390.0,102380.0,0.35855363]
[1737617901524,0.00025971,102390.0,102380.0,0.48632023]
[1737617902312,0.00025971,102390.0,102380.0,0.45590092]
[1737617902952,0.00025971,102390.0,102380.0,0.47590052]
[1737617903158,0.00025971,102390.0,102380.0,0.62590052]
[1737617904446,0.00025971,102390.0,102380.0,0.60590092]
[1737617904633,0.00025971,102390.0,102380.0,0.62590052]
[1737617905050,0.00025971,102390.0,102380.0,0.60590092]
[1737617905313,0.00025971,102390.0,102380.0,0.62590052]
[1737617911946,0.00025971,102390.0,102380.0,0.73577089]
[1737617912145,0.00025971,102390.0,102380.0,0.62590052]
[1737617912324,0.00025971,102390.0,102380.0,1.48916752]
[1737617912926,0.00025971,102390.0,102380.0,1.59903789]
[1737617913670,0.00025971,102390.0,102380.0,1.48916752]
[1737617914025,7.1e-07,102390.0,102380.0,1.59903789]
[1737617914209,7.1e-07,102390.0,102380.0,0.73577089]
[1737617919047,0.0004022,102410.0,102400.0,0.252556]
[1737617919260,0.00050022,102410.0,102400.0,0.61038192]
[1737617923316,0.00050022,102410.0,102400.0,0.63029283]
[1737617926791,0.00050022,102410.0,102400.0,0.64002079]